lending/lending_fUSD_20240111
["ID","MTS","AMOUNT","RATE_DAILY","PERIOD"]
[311271723,1705008644899,-4826.02860784,0.00039967,10]
[311271725,1705008644908,-2757.730633,0.00039967,15]
[311271727,1705008644917,-200.0,0.00039968,10]
[311271729,1705008644925,-200.0,0.00039968,10]
[311271731,1705008644934,-213.1463526,0.00039968,10]
[311271733,1705008644944,-2757.73063301,0.00039968,15]
[311271735,1705008644953,-200.0,0.00039968,10]
[311271737,1705008644962,-5181.60730178,0.00039968,15]
[311271739,1705008644972,-8273.19189911,0.00039968,10]
[311271741,1705008644981,-1017.62471951,0.00039969,10]
[311271743,1705008644991,-9652.05721565,0.00039969,10]
[311271745,1705008645000,-11521.7617177,0.0003997,10]
[311271746,1705008645009,-200.0,0.0003997,15]
[311271747,1705008645018,-9652.05721565,0.0003997,10]
[311271748,1705008645027,-3271.93191935,0.0003997,10]
[311271749,1705008645036,-2757.73063301,0.0003997,15]
[311271750,1705008645045,-1869.67538244,0.0003997,15]
[311271751,1705008645055,-1017.62471951,0.0003997,10]
[311271752,1705008645064,-310.74503465,0.00039971,10]
[311271753,1705008645073,-8273.19189911,0.00039971,10]
[311271754,1705008645082,-3271.93191935,0.00039971,10]
[311271756,1705008645092,-200.0,0.00039971,10]
[311271758,1705008645101,-4727.53822802,0.00039971,15]
[311271760,1705008645111,-200.0,0.00039971,10]
[311271762,1705008645120,-290.74991987,0.00039972,10]
[311271764,1705008645129,-4727.53822802,0.00039972,15]
[311271766,1705008645138,-9067.81277819,0.00039972,10]
[311271768,1705008645148,-1869.67538244,0.00039973,15]
[311271770,1705008645157,-4826.02860784,0.00039973,10]
[311271772,1705008645166,-3279.70039081,0.00039973,15]
[311271774,1705008645176,-3279.70039081,0.00039973,15]
[311271776,1705008645187,-581.49983968,0.00039973,15]
[311271778,1705008645196,-4826.02860783,0.00039974,10]
[311271780,1705008645205,-4826.02860784,0.00039974,10]
[311271782,1705008645214,-200.0,0.00039974,10]
[311271784,1705008645223,-310.74503465,0.00039974,10]
[311271786,1705008645233,-1090.31219945,0.00039974,10]
[311271789,1705008645242,-955.45861426,0.00039975,10]
[311271812,1705008645394,-9652.05721565,0.00039975,10]
[311271815,1705008645404,-1869.67538244,0.00039975,15]
[311271819,1705008645413,-6583.86383864,0.00039975,15]
[311271822,1705008645422,-200.0,0.00039975,15]
[311271825,1705008645431,-5739.47568399,0.00039975,10]
[311271828,1705008645440,-508.81235977,0.00039975,10]
[311271831,1705008645449,-1017.62471951,0.00039975,10]
[311271834,1705008645458,-5739.47568399,0.00039976,10]
[311271837,1705008645468,-5739.47568399,0.00039976,10]
[311271839,1705008645477,-200.0,0.00039977,10]
[311271842,1705008645486,-200.0,0.00039978,10]
[311271844,1705008645496,-200.0,0.00039978,15]
[311271847,1705008645505,-2757.73063301,0.00039978,15]
[311271850,1705008645515,-200.0,0.00039978,10]
[311271852,1705008645523,-5739.47568399,0.00039979,10]
[311271855,1705008645533,-762.94156719,0.0003998,3]
[311271857,1705008645543,-955.45861426,0.00039981,10]
[311271859,1705008645553,-508.81235977,0.00039981,10]
[311271861,1705008645563,-4826.02860783,0.00039981,10]
[311271863,1705008645572,-200.0,0.00039981,10]
[311271865,1705008645581,-290.74991987,0.00039981,10]
[311271867,1705008645590,-156.18722055,0.00039982,7]
[311271869,1705008645600,-200.0,0.00039982,10]
[311271871,1705008645609,-9067.81277819,0.00039982,10]
[311271873,1705008645618,-200.0,0.00039982,10]
[311271875,1705008645627,-310.74503465,0.00039983,10]
[311271877,1705008645636,-200.0,0.00039983,10]
[311271879,1705008645645,-508.81235977,0.00039984,10]
[311271881,1705008645654,-200.0,0.00039985,10]
[311271883,1705008645663,-11521.7617177,0.00039985,10]
[311271885,1705008645672,-3271.93191935,0.00039985,10]
[311271887,1705008645681,-4826.02860784,0.00039985,10]
[311271889,1705008645690,-1090.31219945,0.00039986,10]
[311271891,1705008645699,-290.74991987,0.00039986,10]
[311271893,1705008645708,-200.0,0.00039986,10]
[311271895,1705008645717,-9652.05721565,0.00039986,10]
[311271897,1705008645726,-9067.81277819,0.00039986,10]
[311271899,1705008645735,-3271.93191935,0.00039987,10]
[311271901,1705008645746,-11521.7617177,0.00039987,10]
[311271903,1705008645755,-200.0,0.00039988,10]
[311271905,1705008645765,-213.1463526,0.00039988,10]
[311271907,1705008645774,-1090.31219945,0.00039988,10]
[311271909,1705008645784,-1000.7398265,0.0003999,10]
[311271911,1705008645793,-3336.0,0.0003999,3]
[311271913,1705008645804,-358.63,0.0003999,10]
[311271915,1705008645813,-370.59,0.0003999,10]
[311271917,1705008645823,-308.82,0.0003999,10]
[311271919,1705008645833,-257.35,0.0003999,10]
[311271921,1705008645843,-302.30647103,0.00039993,4]
[311271923,1705008645852,-430.68871395,0.00039993,4]
[311271925,1705008645861,-263.28142011,0.00039993,2]
[311271927,1705008645871,-399.61313833,0.00039993,4]
[311271929,1705008645880,-167.05182833,0.00039994,4]
[311271931,1705008645888,-1016.69878254,0.00039994,4]
[311271933,1705008645897,-3561.04760074,0.00039995,4]
[311271935,1705008645906,-690.39236906,0.00039995,2]
[311271937,1705008645915,-11496.67531732,0.00039995,4]
[311271939,1705008645924,-4315.4127057,0.00039995,2]
[311271941,1705008645933,-154.17634,0.00039995,7]
[311271943,1705008645943,-151.0,0.00039995,7]
[311271945,1705008645951,-151.0,0.00039995,7]
[311271947,1705008645960,-151.0,0.00039995,7]
[311271949,1705008645969,-151.0,0.00039995,7]
[311271951,1705008645978,-151.0,0.00039995,7]
[311271953,1705008645987,-293.684508,0.00039995,7]
[311271955,1705008645997,-151.0,0.00039995,7]
[311271957,1705008646007,-151.0,0.00039995,7]
[311271959,1705008646016,-11898.92038634,0.00039998,4]
[311271961,1705008646025,-3291.64435569,0.00039999,2]
[311271963,1705008646035,-196.2835416,0.00039999,4]
[311271965,1705008646044,-150.0,0.00039999,2]
[311271967,1705008646053,-150.0,0.00039999,2]
[311271969,1705008646062,-150.0,0.00039999,2]
[311271971,1705008646076,-477166.30459235,0.0004,4]
[311271972,1705008646087,-155.42468431,0.0004,3]
[311271974,1705008646096,-1586.761365,0.0004,2]
[311271976,1705008646105,-23684.24985,0.0004,2]
[311271978,1705008646115,-223.65882795,0.0004,4]
[311271980,1705008646124,-17927.90643813,0.0004,4]
[311271982,1705008646134,-1000.0,0.0004,10]
[311271984,1705008646144,-1000.0,0.0004,10]
[311271986,1705008646153,-1000.0,0.0004,10]
[311271988,1705008646163,-1000.0,0.0004,10]
[311271991,1705008646172,-22235.21321334,0.0004,2]
[311271992,1705008646182,-31775.75896654,0.0004,4]
[311271995,1705008646191,-400.0,0.0004,120]
[311271996,1705008646201,-500.0,0.0004,7]
[311271999,1705008646211,-500.0,0.0004,7]
[311272001,1705008646221,-500.0,0.0004,7]
[311272003,1705008646231,-500.0,0.0004,7]
[311272004,1705008646240,-500.0,0.0004,7]
[311272006,1705008646250,-500.0,0.0004,7]
[311272008,1705008646259,-500.0,0.0004,7]
[311272010,1705008646268,-500.0,0.0004,7]
[311272012,1705008646278,-500.0,0.0004,7]
[311272014,1705008646286,-500.0,0.0004,7]
[311272016,1705008646296,-500.0,0.0004,7]
[311272019,1705008646305,-500.0,0.0004,7]
[311272020,1705008646314,-500.0,0.0004,7]
[311272022,1705008646323,-500.0,0.0004,7]
[311272025,1705008646332,-500.0,0.0004,7]
[311272027,1705008646341,-500.0,0.0004,7]
[311272029,1705008646350,-500.0,0.0004,7]
[311272031,1705008646359,-500.0,0.0004,7]
[311272032,1705008646368,-500.0,0.0004,7]
[311272034,1705008646377,-500.0,0.0004,7]
[311272036,1705008646386,-500.0,0.0004,7]
[311272039,1705008646395,-500.0,0.0004,7]
[311272040,1705008646404,-500.0,0.0004,7]
[311272042,1705008646414,-500.0,0.0004,7]
[311272044,1705008646423,-500.0,0.0004,7]
[311272046,1705008646432,-500.0,0.0004,7]
[311272048,1705008646442,-500.0,0.0004,7]
[311272050,1705008646451,-500.0,0.0004,7]
[311272052,1705008646459,-500.0,0.0004,7]
[311272054,1705008646469,-500.0,0.0004,7]
[311272056,1705008646478,-642.29398543,0.0004,7]
[311272058,1705008646487,-500.0,0.0004,7]
[311272060,1705008646496,-500.0,0.0004,7]
[311272062,1705008646505,-500.0,0.0004,7]
[311272064,1705008646514,-500.0,0.0004,7]
[311272066,1705008646522,-500.0,0.0004,7]
[311272068,1705008646531,-500.0,0.0004,7]
[311272070,1705008646540,-500.0,0.0004,7]
[311272072,1705008646549,-500.0,0.0004,7]
[311272074,1705008646558,-3667.077984,0.0004,2]
[311272076,1705008646567,-4583.84748,0.0004,2]
[311272078,1705008646577,-153.0,0.0004,7]
[311272080,1705008646586,-600.0,0.0004,41]
[311272082,1705008646595,-18761.41430294,0.0004,10]
[311272084,1705008646604,-178.52,0.0004,2]
[311272086,1705008646613,-18767.49045081,0.0004,30]
[311272088,1705008646622,-161.0377925,0.0004,30]
[311272090,1705008646631,-4075.64826899,0.0004,4]
[311272092,1705008646640,-806.09957877,0.0004,2]
[311272094,1705008646649,-2058.12186691,0.0004,2]
[311272096,1705008646658,-659.96111596,0.0004,10]
[311272098,1705008646667,-956.60549549,0.0004,2]
[311272100,1705008646676,-155.0,0.0004,2]
[311272102,1705008646685,-2000.0,0.0004,2]
[311272104,1705008646694,-5000.0,0.0004,35]
[311272106,1705008646703,-2255.21999702,0.0004,7]
[311272108,1705008646713,-482996.88147503,0.0004,15]
[311272110,1705008646722,-22008.0721351,0.0004,4]
[311272112,1705008646731,-350.0,0.0004,120]
[311272114,1705008646740,-283.29816887,0.0004,4]
[311272116,1705008646749,-357.84158297,0.0004,4]
[311272118,1705008646758,-282.25366019,0.0004,4]
[311272120,1705008646768,-224.63428457,0.0004,4]
[311272122,1705008646777,-24075.0,0.0004,2]
[311272124,1705008646787,-471.95156898,0.0004,5]
[311272127,1705008646796,-2500.0,0.0004,90]
[311272129,1705008646806,-151.0,0.0004,7]
[311272131,1705008646815,-151.0,0.0004,7]
[311272133,1705008646824,-151.0,0.0004,7]
[311272135,1705008646833,-255.0,0.0004,12]
[311272137,1705008646842,-151.0,0.0004,7]
[311272139,1705008646852,-151.0,0.0004,7]
[311272141,1705008646860,-151.0,0.0004,7]
[311272143,1705008646870,-151.0,0.0004,7]
[311272145,1705008646879,-151.0,0.0004,7]
[311272146,1705008646888,-151.0,0.0004,7]
[311272148,1705008646898,-151.0,0.0004,7]
[311272150,1705008646907,-151.0,0.0004,7]
[311272152,1705008646917,-151.0,0.0004,7]
[311272154,1705008646926,-151.0,0.0004,7]
[311272157,1705008646936,-2500.0,0.0004,30]
[311272159,1705008646946,-269.165593,0.0004,7]
[311272161,1705008646955,-269.165593,0.0004,7]
[311272163,1705008646964,-151.0,0.0004,7]
[311272165,1705008646974,-151.0,0.0004,7]
[311272167,1705008646983,-151.0,0.0004,7]
[311272169,1705008646993,-151.0,0.0004,7]
[311272171,1705008647002,-151.0,0.0004,7]
[311272173,1705008647013,-165.570354,0.0004,11]
[311272175,1705008647022,-500.0,0.0004,2]
[311272176,1705008647031,-151.0,0.0004,7]
[311272179,1705008647040,-151.0,0.0004,7]
[311272181,1705008647049,-2069.0,0.0004,2]
[311272183,1705008647058,-5085.0,0.0004,2]
[311272185,1705008647067,-1793.08303871,0.0004,7]
[311272186,1705008647076,-210.38937704,0.0004,2]
[311272189,1705008647087,-200.0,0.0004,7]
[311272191,1705008647096,-151.0,0.0004,7]
[311272192,1705008647105,-150.17,0.0004,2]
[311272194,1705008647114,-150.17,0.0004,2]
[311272196,1705008647126,-150.17,0.0004,2]
[311272198,1705008647135,-150.17,0.0004,2]
[311272200,1705008647145,-150.17,0.0004,2]
[311272202,1705008647154,-150.17,0.0004,2]
[311272204,1705008647163,-150.17,0.0004,2]
[311272207,1705008647172,-150.17,0.0004,2]
[311272209,1705008647182,-150.17,0.0004,2]
[311272211,1705008647191,-150.17,0.0004,2]
[311272213,1705008647200,-150.17,0.0004,2]
[311272214,1705008647209,-150.17,0.0004,2]
[311272217,1705008647219,-150.17,0.0004,2]
[311272219,1705008647227,-150.17,0.0004,2]
[311272221,1705008647237,-150.17,0.0004,2]
[311272222,1705008647247,-150.17,0.0004,2]
[311272223,1705008647255,-150.17,0.0004,2]
[311272224,1705008647264,-150.17,0.0004,2]
[311272225,1705008647273,-150.17,0.0004,2]
[311272226,1705008647282,-150.17,0.0004,2]
[311272227,1705008647291,-150.17,0.0004,2]
[311272228,1705008647300,-423.187143,0.0004,7]
[311272229,1705008647309,-150.17,0.0004,2]
[311272230,1705008647318,-150.17,0.0004,2]
[311272231,1705008647327,-150.17,0.0004,2]
[311272233,1705008647335,-150.17,0.0004,2]
[311272235,1705008647345,-150.17,0.0004,2]
[311272237,1705008647354,-150.17,0.0004,2]
[311272239,1705008647363,-150.17,0.0004,2]
[311272241,1705008647372,-150.17,0.0004,2]
[311272243,1705008647381,-150.17,0.0004,2]
[311272245,1705008647390,-150.17,0.0004,2]
[311272247,1705008647400,-150.17,0.0004,2]
[311272249,1705008647411,-150.17,0.0004,2]
[311272251,1705008647420,-150.17,0.0004,2]
[311272253,1705008647431,-150.17,0.0004,2]
[311272255,1705008647441,-150.17,0.0004,2]
[311272257,1705008647450,-150.17,0.0004,2]
[311272259,1705008647458,-150.17,0.0004,2]
[311272261,1705008647468,-150.17,0.0004,2]
[311272263,1705008647477,-150.17,0.0004,2]
[311272265,1705008647486,-150.17,0.0004,2]
[311272267,1705008647496,-150.17,0.0004,2]
[311272269,1705008647505,-150.17,0.0004,2]
[311272272,1705008647515,-150.17,0.0004,2]
[311272274,1705008647524,-150.17,0.0004,2]
[311272276,1705008647534,-150.17,0.0004,2]
[311272277,1705008647543,-150.17,0.0004,2]
[311272279,1705008647552,-150.17,0.0004,2]
[311272281,1705008647561,-423.187143,0.0004,7]
[311272283,1705008647571,-150.17,0.0004,2]
[311272286,1705008647580,-150.17,0.0004,2]
[311272288,1705008647590,-150.17,0.0004,2]
[311272290,1705008647599,-150.17,0.0004,2]
[311272291,1705008647607,-150.17,0.0004,2]
[311272293,1705008647617,-150.17,0.0004,2]
[311272295,1705008647627,-150.17,0.0004,2]
[311272297,1705008647637,-150.17,0.0004,2]
[311272299,1705008647646,-150.17,0.0004,2]
[311272302,1705008647656,-150.17,0.0004,2]
[311272304,1705008647665,-150.17,0.0004,2]
[311272306,1705008647675,-150.17,0.0004,2]
[311272308,1705008647684,-150.17,0.0004,2]
[311272310,1705008647694,-150.17,0.0004,2]
[311272312,1705008647703,-150.17,0.0004,2]
[311272314,1705008647713,-150.17,0.0004,2]
[311272316,1705008647722,-150.17,0.0004,2]
[311272318,1705008647731,-150.17,0.0004,2]
[311272319,1705008647740,-150.17,0.0004,2]
[311272321,1705008647750,-150.17,0.0004,2]
[311272323,1705008647759,-150.17,0.0004,2]
[311272326,1705008647768,-150.17,0.0004,2]
[311272328,1705008647777,-150.17,0.0004,2]
[311272330,1705008647786,-150.17,0.0004,2]
[311272332,1705008647795,-150.17,0.0004,2]
[311272333,1705008647805,-150.17,0.0004,2]
[311272335,1705008647814,-150.17,0.0004,2]
[311272337,1705008647824,-150.17,0.0004,2]
[311272339,1705008647833,-150.17,0.0004,2]
[311272341,1705008647841,-150.17,0.0004,2]
[311272343,1705008647851,-150.17,0.0004,2]
[311272345,1705008647860,-150.17,0.0004,2]
[311272347,1705008647869,-150.17,0.0004,2]
[311272349,1705008647878,-150.17,0.0004,2]
[311272351,1705008647887,-150.17,0.0004,2]
[311272353,1705008647896,-150.17,0.0004,2]
[311272355,1705008647905,-150.17,0.0004,2]
[311272357,1705008647914,-150.17,0.0004,2]
[311272359,1705008647923,-150.17,0.0004,2]
[311272361,1705008647932,-150.17,0.0004,2]
[311272363,1705008647941,-150.17,0.0004,2]
[311272365,1705008647950,-150.17,0.0004,2]
[311272368,1705008647960,-150.17,0.0004,2]
[311272370,1705008647969,-150.17,0.0004,2]
[311272372,1705008647978,-150.17,0.0004,2]
[311272374,1705008647988,-150.17,0.0004,2]
[311272376,1705008647998,-150.17,0.0004,2]
[311272378,1705008648007,-150.17,0.0004,2]
[311272380,1705008648016,-150.17,0.0004,2]
[311272382,1705008648025,-150.17,0.0004,2]
[311272384,1705008648034,-150.17,0.0004,2]
[311272386,1705008648044,-150.17,0.0004,2]
[311272402,1705008648204,-150.0,0.0004,15]
[311272404,1705008648218,-1297.454311,0.0004,3]
[311272406,1705008648228,-430.45164925,0.0004,2]
[311272408,1705008648237,-72799.5685687,0.00040011,2]
[311272410,1705008648247,-13559.4319584,0.00040011,2]
[311272412,1705008648256,-5935.0540408,0.00040011,2]
[311272414,1705008648265,-152.9985358,0.00040039,6]
[311272416,1705008648274,-150.653425,0.00040041,30]
[311272418,1705008648284,-417.51,0.0004006,2]
[311272420,1705008648292,-150.0,0.0004006,2]
[311272422,1705008648301,-407.88,0.0004006,2]
[311272424,1705008648310,-150.0,0.0004006,2]
[311272426,1705008648319,-150.0,0.0004006,2]
[311272428,1705008648328,-417.71,0.0004006,2]
[311272430,1705008648339,-490.27,0.0004006,2]
[311272432,1705008648348,-150.0,0.0004006,2]
[311272434,1705008648357,-407.88,0.0004006,2]
[311272436,1705008648366,-150.0,0.0004006,2]
[311272438,1705008648375,-150.0,0.0004006,2]
[311272441,1705008648383,-417.71,0.0004006,2]
[311272443,1705008648392,-150.0,0.0004006,2]
[311272446,1705008648401,-150.0,0.0004006,2]
[311272449,1705008648410,-407.88,0.0004006,2]
[311272451,1705008648419,-150.0,0.0004006,2]
[311272453,1705008648427,-281.08,0.0004006,2]
[311272455,1705008648437,-150.0,0.0004006,2]
[311272457,1705008648445,-406.12,0.0004006,2]
[311272459,1705008648455,-150.0,0.0004006,2]
[311272461,1705008648464,-150.0,0.0004006,2]
[311272463,1705008648473,-150.0,0.0004006,2]
[311272465,1705008648482,-150.0,0.0004006,2]
[311272467,1705008648491,-150.0,0.0004006,2]
[311272469,1705008648500,-150.0,0.0004006,2]
[311272471,1705008648509,-150.0,0.0004006,2]
[311272473,1705008648518,-2040.551452,0.00040077,2]
[311272475,1705008648528,-10378.914948,0.00040077,2]
[311272477,1705008648537,-2014.977719,0.00040077,2]
[311272479,1705008648547,-685.588463,0.00040077,2]
[311272481,1705008648556,-1935.291063,0.00040077,2]
[311272483,1705008648565,-181.530769,0.00040077,2]
[311272485,1705008648575,-387.058212,0.00040077,2]
[311272487,1705008648584,-200.0,0.00040096,5]
[311272489,1705008648593,-2332.262528,0.000401,2]
[311272491,1705008648602,-343.0,0.000401,30]
[311272493,1705008648611,-1000.0,0.000401,2]
[311272495,1705008648620,-433.0,0.000401,30]
[311272497,1705008648629,-22136.77,0.000401,7]
[311272499,1705008648638,-16454.73,0.000401,7]
[311272501,1705008648648,-911.1,0.000401,30]
[311272503,1705008648657,-3952.25,0.000401,7]
[311272505,1705008648665,-155.823893,0.00040107,2]
[311272507,1705008648674,-152.0,0.00040164,3]
[311272509,1705008648684,-168.89,0.00040212,2]
[311272511,1705008648692,-171.397116,0.00040242,2]
[311272513,1705008648701,-2648.35329845,0.00040314,14]
[311272515,1705008648710,-153.84,0.00040321,2]
[311272517,1705008648720,-1058.57,0.00040349,15]
[311272519,1705008648729,-500.0,0.00040349,7]
[311272521,1705008648738,-1479.51,0.00040368,60]
[311272523,1705008648747,-268.81134425,0.00040382,12]
[311272525,1705008648756,-150.653425,0.00040397,30]
[311272527,1705008648765,-17607.4,0.000404,30]
[311272529,1705008648774,-17607.4,0.000404,2]
[311272531,1705008648783,-1000.0,0.00040412,4]
[311272533,1705008648792,-541.72,0.00040423,2]
[311272535,1705008648802,-719.26828792,0.00040446,2]
[311272537,1705008648811,-150.653425,0.00040461,30]
[311272539,1705008648820,-6560.99503908,0.000405,7]
[311272541,1705008648830,-146129.90862637,0.000405,2]
[311272543,1705008648839,-38208.73688342,0.000405,2]
[311272545,1705008648849,-3542.65577547,0.000405,2]
[311272547,1705008648858,-17411.0,0.000405,3]
[311272549,1705008648867,-1000.0,0.000405,7]
[311272551,1705008648876,-150.653425,0.00040538,30]
[311272553,1705008648885,-168.89,0.00040555,2]
[311272555,1705008648894,-2040.551452,0.00040572,2]
[311272557,1705008648904,-172.043996,0.00040572,2]
[311272559,1705008648913,-10378.914948,0.00040572,2]
[311272561,1705008648922,-2014.977719,0.00040572,2]
[311272563,1705008648931,-685.588463,0.00040572,2]
[311272565,1705008648940,-181.530769,0.00040572,2]
[311272567,1705008648950,-1935.291063,0.00040572,2]
[311272570,1705008648959,-387.058212,0.00040572,2]
[311272572,1705008648969,-9011.57,0.00040583,2]
[311272574,1705008648978,-202.0,0.00040629,20]
[311272575,1705008648988,-1479.51,0.00040633,60]
[311272577,1705008648997,-333.76934524,0.00040644,5]
[311272579,1705008649007,-183.92851571,0.0004066,30]
[311272581,1705008649017,-1000.0,0.00040683,2]
[311272584,1705008649026,-539.84020963,0.0004069,4]
[311272585,1705008649035,-22136.77,0.000407,7]
[311272586,1705008649044,-16454.73,0.000407,7]
[311272587,1705008649053,-3952.25,0.000407,7]
[311272588,1705008649062,-2648.35329845,0.00040727,14]
[311272589,1705008649071,-649.31,0.00040733,2]
[311272590,1705008649080,-500.0,0.00040743,7]
[311272591,1705008649089,-153.0,0.000408,7]
[311272592,1705008649099,-156.23408168,0.0004081,30]
[311272594,1705008649109,-268.499971,0.00040822,14]
[311272596,1705008649118,-150.0,0.00040882,2]
[311272598,1705008649127,-150.0,0.00040882,2]
[311272600,1705008649137,-151.25,0.00040882,2]
[311272601,1705008649147,-152.9985358,0.00040895,10]
[311272603,1705008649156,-1479.51,0.00040898,60]
[311272605,1705008649165,-168.89,0.00040899,2]
[311272608,1705008649175,-171.397116,0.00040902,2]
[311272610,1705008649185,-200.0,0.00040987,11]
[311272612,1705008649194,-150.0,0.00040999,3]
[311272614,1705008649204,-150.0,0.00040999,3]
[311272615,1705008649214,-350.05213863,0.00040999,7]
[311272617,1705008649224,-100000.0,0.00041,11]
[311272619,1705008649234,-4888.61680617,0.00041,3]
[311272622,1705008649243,-1643.01273169,0.00041,4]
[311272624,1705008649256,-45831.00985175,0.00041,4]
[311272626,1705008649290,-1852.04,0.00041,4]
[311272640,1705008649715,-925.08405458,0.00028579,6]
[311272641,1705008649725,-1002.62523515,0.00028589,6]
[311272642,1705008649734,-226.3440456,0.00029685,2]
[311272643,1705008649744,-3186.46864652,0.00029685,2]
[311272644,1705008649754,-728.00554382,0.00029685,2]
[311272645,1705008649763,-155.0,0.00029685,2]
[311272646,1705008649773,-4793.91967432,0.00029685,2]
[311272647,1705008649784,-288.11805248,0.00029685,2]
[311272650,1705008649801,-579.81418838,0.00029685,2]
[311272656,1705008650292,-155.19345628,0.00028578,2]
[311272657,1705008650302,-10508.70102665,0.00028585,2]
[311272658,1705008650311,-11081.1673414,0.00029685,2]
[311272659,1705008650320,-1965.09054958,0.00029685,2]
[311272660,1705008650329,-246.1670273,0.00029685,2]
[311272661,1705008650339,-155.0,0.00029685,2]
[311272662,1705008650348,-1011.93517598,0.00029685,2]
[311272663,1705008650358,-155.42281929,0.00029685,2]
[311272664,1705008650379,-2303.57353565,0.00029685,2]
[311272665,1705008650389,-4346.25511422,0.00029686,2]
[311272666,1705008650398,-155.41153274,0.00029686,2]
[311272667,1705008650408,-155.80431441,0.00029686,2]
[311272668,1705008650418,-1821.26867865,0.00032613,14]
[311272669,1705008650427,-186.8108454,0.000349,2]
[311272670,1705008650436,-200.0,0.00036075,5]
[311272671,1705008650445,-167.0,0.00037776,2]
[311272672,1705008650454,-1049.67172007,0.00038,2]
[311272673,1705008650463,-189.82959309,0.00038092,11]
[311272674,1705008650473,-1823.2487592,0.00040011,2]
[311272675,1705008650482,-12344.52542326,0.00041,4]
[311272676,1705008650493,-1000.0,0.00041,11]
[311272677,1705008650502,-1000.0,0.00041,11]
[311272678,1705008650512,-1014.0,0.00041,11]
[311272679,1705008650522,-600.0,0.00041,42]
[311272680,1705008650533,-1000.0,0.00041,120]
[311272681,1705008650542,-1007.0,0.00041,10]
[311272682,1705008650551,-17411.0,0.00041,5]
[311272683,1705008650561,-950.0,0.00041,3]
[311272684,1705008650570,-507.915024,0.00041,2]
[311272685,1705008650580,-150.0,0.00041,16]
[311272686,1705008650589,-1297.454311,0.00041,4]
[311272687,1705008650598,-643.11,0.00041007,2]
[311272688,1705008650608,-699.44,0.00041007,2]
[311272689,1705008650618,-268.17449951,0.00041067,2]
[311272690,1705008650628,-2040.551452,0.00041067,2]
[311272691,1705008650638,-10378.914948,0.00041067,2]
[311272692,1705008650647,-2014.977719,0.00041067,2]
[311272693,1705008650656,-685.588463,0.00041067,2]
[311272694,1705008650665,-181.530769,0.00041067,2]
[311272695,1705008650675,-1935.291063,0.00041067,2]
[311272696,1705008650685,-387.058212,0.00041067,2]
[311272697,1705008650694,-1304.67347698,0.00041067,5]
[311272698,1705008650703,-684.27567951,0.0004107,3]
[311272699,1705008650712,-6181.88841763,0.00041084,5]
[311272700,1705008651247,-43783.9479132,0.00041084,5]
[311272701,1705008651256,-14356.93101011,0.00041084,5]
[311272703,1705008651266,-500.0,0.00041095,2]
[311272704,1705008651275,-400.0,0.00041096,120]
[311272705,1705008651285,-350.0,0.00041096,120]
[311272706,1705008651294,-180.0,0.00041096,2]
[311272707,1705008651304,-3728.37,0.00041096,2]
[311272708,1705008651313,-150.0,0.00041096,2]